bitfinex/quotes_ETHUSD_20220109
["timestamp","ask_amount","ask_price","bid_price","bid_amount"]
[1641738006988,2.41991,3101.2,3100.8,2.74737101]
[1641738007188,0.3,3101.1,3100.9,0.00284211]
[1641738007393,6.65663,3101.0,3100.9,0.00284211]
[1641738007639,10.22668298,3101.0,3100.9,0.00284211]
[1641738007835,5.3,3100.9,3100.4,2.46234346]
[1641738008036,1.61381,3100.7,3100.1,5.13505019]
[1641738008231,3.83105036,3100.8,3100.1,5.13505019]
[1641738008433,3.53105036,3100.8,3100.2,0.0022737]
[1641738008631,3.83105036,3100.8,3100.1,5.07232389]
[1641738008830,3.83105036,3100.8,3100.1,2.46234346]
[1641738009032,3.22744,3100.4,3100.0,0.005829]
[1641738009234,0.80684,3100.2,3100.0,0.005829]
[1641738011988,1.61407,3100.1,3100.0,0.005829]
[1641738012389,1.61407,3100.1,3100.0,0.00696585]
[1641738013488,4.04625382,3100.1,3100.0,0.00696585]
[1641738013687,1.61407,3100.1,3100.0,0.00696585]
[1641738016329,5.56407,3100.1,3100.0,0.00696585]
[1641738016533,9.01768669,3100.1,3100.0,0.00696585]
[1641738020584,2.61407,3100.1,3100.0,0.00696585]
[1641738021483,5.07741376,3100.1,3100.0,0.00696585]
[1641738021684,2.61407,3100.1,3100.0,0.00696585]
[1641738021883,5.09721881,3100.1,3100.0,0.00696585]
[1641738022731,5.09721881,3100.1,3100.0,2.75566989]
[1641738023132,6.66407,3100.1,3100.0,2.75566989]
[1641738023332,9.11849735,3100.1,3100.0,2.75566989]
[1641738024535,6.0,3100.0,3098.8,1.1765]
[1641738024735,0.8071222,3099.4,3098.8,1.1765]
[1641738024934,0.80711,3099.2,3098.9,0.00625265]
[1641738025134,0.80711,3099.1,3098.9,0.00625265]
[1641738025333,0.80711,3099.1,3098.9,2.75517324]
[1641738025534,2.4213322,3099.4,3098.9,2.74892059]
[1641738025735,0.80699,3099.6,3099.0,0.00568423]
[1641738025936,1.61398,3099.6,3099.0,2.75460482]
[1641738026138,5.61438,3099.9,3099.0,2.75460482]
[1641738026400,5.61438,3099.9,3099.1,0.00511581]
[1641738026586,0.80695,3099.7,3099.1,2.7540364]
[1641738026785,0.80694,3099.7,3099.4,1.38655872]
[1641738026984,0.80694,3099.7,3099.2,2.75346797]
[1641738027188,0.80693,3099.9,3099.5,0.00284211]
[1641738027385,1.6138776,3099.9,3099.3,0.00397896]
[1641738027786,0.80695,3099.7,3099.3,2.75289955]
[1641738027987,0.80699,3099.6,3099.3,2.75289955]
[1641738028188,0.80699,3099.6,3099.4,0.00341054]
[1641738028387,1.61398,3099.6,3099.4,0.00341054]
[1641738028588,1.61398,3099.6,3099.4,2.75233113]
[1641738028988,1.61398,3099.6,3099.5,0.00284211]
[1641738029188,2.42112,3099.6,3099.5,0.00284211]
[1641738029389,3.02926672,3099.6,3099.5,0.00284211]
[1641738029589,3.02926672,3099.6,3099.3,0.00397896]
[1641738029789,0.80706,3099.4,3099.3,0.00397896]
[1641738029989,4.70706,3099.4,3099.3,0.00397896]
[1641738030236,5.00706,3099.4,3099.3,0.00397896]
[1641738030433,0.80706,3099.4,3099.0,0.00568423]
[1641738030633,0.80706,3099.4,3099.3,2.74892059]
[1641738030832,1.40706,3099.4,3099.3,2.74892059]
[1641738031032,8.75706,3099.4,3099.3,2.75289955]
[1641738031440,8.75706,3099.4,3099.3,0.00397896]
[1641738031833,8.75706,3099.4,3099.2,0.00454738]
[1641738032033,6.11443,3099.3,3099.2,0.00454738]
[1641738032233,1.61443,3099.3,3099.2,0.00454738]
[1641738032433,2.61443,3099.3,3098.7,0.0073895]
[1641738032635,1.6143991,3099.1,3098.7,0.0073895]
[1641738032835,0.8072,3098.9,3098.7,0.0073895]
[1641738033033,0.8072,3098.9,3098.6,0.00795792]
[1641738033433,0.68147517,3098.8,3098.6,0.00795792]
[1641738034096,0.68147517,3098.8,3098.5,0.00852635]
[1641738034293,0.80722,3098.7,3098.1,4.0983]
[1641738034694,0.80722,3098.7,3098.3,0.00966319]
[1641738035294,1.6146124,3098.6,3098.3,0.00966319]
[1641738035493,1.6146124,3098.6,3098.1,2.46234346]
[1641738035494,1.91475,3098.5,3098.2,0.01023162]
[1641738035697,0.80741,3098.4,3098.2,0.01023162]
[1641738036196,2.10741,3098.4,3098.2,0.01023162]
[1641738036397,7.08512973,3098.3,3098.0,0.01136846]
[1641738036599,0.80762,3098.1,3098.0,0.01136846]
[1641738036995,1.10762,3098.1,3098.0,0.01136846]
[1641738039441,1.10762,3098.1,3097.9,4.71836846]
[1641738039642,0.3,3098.0,3097.9,4.71836846]
[1641738040243,0.3,3098.0,3097.9,4.65336846]
[1641738040845,0.3,3098.0,3097.2,2.46234346]
[1641738041245,0.3,3098.0,3097.3,0.00397897]
[1641738041486,0.64131273,3097.8,3097.3,0.00397897]
[1641738041689,0.64131273,3097.8,3097.2,0.00454739]
[1641738042082,0.64131273,3097.8,3097.2,2.46689085]
[1641738042881,0.8076,3097.7,3097.3,2.46234346]
[1641738043282,0.64131273,3097.8,3097.4,0.00341055]
[1641738043685,1.44885273,3097.8,3097.4,0.00341055]
[1641738043883,0.64131273,3097.8,3097.4,0.00341055]
[1641738044086,0.3,3098.0,3097.2,1.9657294]
[1641738044388,0.3,3098.0,3097.2,4.42807286]
[1641738044783,1.40744,3098.2,3097.2,4.42807286]
[1641738045132,1.40744,3098.2,3097.4,2.46234346]
[1641738045133,0.3,3098.2,3097.4,2.46234346]
[1641738045334,2.15521888,3098.3,3097.8,1.13813256]
[1641738045534,2.45521888,3098.3,3097.8,1.13813256]
[1641738045733,0.00113684,3098.2,3097.8,1.13813256]
[1641738046135,0.00113684,3098.2,3097.5,2.46518558]
[1641738046333,0.80856684,3098.2,3097.5,2.46518558]
[1641738046533,0.80856684,3098.2,3097.6,2.46461716]
[1641738046936,0.80856684,3098.2,3097.7,0.00170527]
[1641738047137,0.80856684,3098.2,3097.7,2.75186682]
[1641738047333,37.04724783,3098.4,3097.7,2.75186682]
[1641738047532,1.0,3098.3,3097.8,0.00227369]
[1641738047733,37.04724783,3098.4,3097.8,0.00227369]
[1641738047933,0.80743,3098.2,3097.8,0.00227369]
[1641738048132,0.80743,3098.2,3097.7,0.00284211]
[1641738048334,0.80743,3098.2,3097.7,2.75300366]
[1641738048734,0.80743,3098.2,3097.8,0.00227369]
[1641738049586,1.61487,3098.2,3097.8,0.00227369]
[1641738049782,0.80747,3098.1,3097.8,0.00227369]
[1641738050282,40.14118308,3098.4,3097.8,0.00227369]
[1641738050283,37.71877608,3098.4,3097.8,0.00227369]
[1641738050483,38.01877608,3098.4,3097.8,0.00227369]
[1641738051684,38.01877608,3098.4,3097.8,2.75243524]
[1641738051883,0.80741,3098.3,3097.8,2.75243524]
[1641738052086,0.80741,3098.3,3097.9,0.00170527]
[1641738053131,1.80741,3098.3,3097.9,0.00170527]
[1641738053331,1.80741,3098.3,3097.9,2.75186682]
[1641738053533,0.80745,3098.2,3097.9,2.75186682]
[1641738053732,0.80751,3098.1,3098.0,0.00113684]
[1641738054535,1.88851,3098.1,3098.0,0.00113684]
[1641738054838,9.78851,3098.1,3098.0,0.00113684]
[1641738055133,9.78851,3098.1,3097.8,0.00227369]
[1641738055134,10.78851,3098.1,3097.8,0.00227369]
[1641738055336,11.59619,3098.1,3098.0,2.75016155]
[1641738055733,10.78851,3098.1,3098.0,2.75129839]
[1641738056394,10.78851,3098.1,3098.0,0.00113684]
[1641738056780,12.4038418,3098.1,3097.8,0.00227369]
[1641738057080,1.61539,3098.0,3097.8,0.00227369]
[1641738057384,1.61539,3098.0,3097.3,1.29843524]
[1641738057385,0.8077347,3097.7,3097.3,1.29843524]
[1641738057582,0.80774,3097.6,3097.3,1.29843524]
[1641738057780,0.80774,3097.6,3097.4,0.0022737]
[1641738057781,1.80774,3097.6,3097.4,0.0022737]
[1641738057980,1.70774,3097.6,3097.4,0.0022737]
[1641738058180,0.39227591,3097.7,3097.4,0.0022737]
[1641738058380,1.6154694,3097.8,3097.1,0.00397897]
[1641738058581,0.82633986,3097.7,3097.1,0.00397897]
[1641738058783,1.6154487,3097.3,3097.1,2.40132243]
[1641738059381,1.61543,3097.5,3096.9,4.41]
[1641738059780,0.80934527,3097.4,3096.9,4.41]
[1641738059986,0.00170527,3097.4,3097.0,1.2307949]
[1641738060231,0.00113685,3097.3,3097.0,3.17992118]
[1641738060631,0.0022737,3097.5,3097.0,3.17992118]
[1641738060833,0.0022737,3097.5,3097.0,3.22010617]
[1641738061032,0.8076,3097.6,3097.0,3.22010617]
[1641738061334,0.80873685,3097.6,3097.1,0.00170527]
[1641738063133,0.00113685,3097.6,3097.5,11.29809035]
[1641738063333,0.13819997,3098.6,3097.5,11.29809035]
[1641738063334,1.93902033,3099.0,3097.6,13.15]
[1641738063534,1.61468,3098.9,3097.7,2.1883496]
[1641738063736,0.00170527,3097.9,3097.8,1.1648]
[1641738064187,0.63796533,3097.9,3097.8,1.1648]
[1641738064389,0.63796533,3097.9,3097.5,1.34809035]
[1641738064787,0.00113685,3097.8,3097.5,1.34809035]
[1641738065291,0.00113685,3097.8,3097.4,0.0120638]
[1641738065488,0.80864685,3097.8,3097.0,6.7558496]
[1641738065887,2.10864685,3097.8,3097.2,0.00227369]
[1641738066088,0.60113685,3097.8,3097.2,0.00227369]
[1641738066287,1.60113685,3097.8,3097.2,0.00227369]
[1641738066789,0.74208291,3097.4,3097.2,0.00227369]
[1641738066989,1.54974291,3097.4,3097.1,3.67097369]
[1641738067289,1.03856602,3097.6,3097.1,3.67097369]
[1641738067487,1.33856602,3097.6,3097.1,3.67097369]
[1641738067732,0.00170527,3097.5,3096.9,3.68435888]
[1641738068133,0.80429078,3097.4,3097.0,0.00113685]
[1641738068333,0.80765,3097.3,3097.0,0.00113685]
[1641738068534,0.80765,3097.3,3097.0,0.00227369]
[1641738069133,0.80765,3097.3,3096.9,0.00284211]
[1641738069534,0.75005495,3097.0,3096.9,0.00284211]
[1641738069733,0.75005495,3097.0,3096.8,0.00341054]
[1641738069933,0.75005495,3097.0,3096.8,2.45616942]
[1641738070332,0.75005495,3097.0,3096.9,0.00284211]
[1641738070940,0.75005495,3097.0,3096.8,0.00341054]
[1641738071390,0.75005495,3097.0,3096.8,2.45616942]
[1641738071783,2.42312,3097.1,3096.9,0.00284211]
[1641738072183,1.6154,3097.1,3096.9,0.00284211]
[1641738072984,1.6154,3097.1,3096.8,0.00341054]
[1641738073288,1.8077022,3097.3,3097.0,1.31503428]
[1641738073289,1.0,3097.3,3097.0,1.31503428]
[1641738073686,0.3,3097.3,3097.1,0.00170527]
[1641738073885,2.42309,3097.4,3097.1,0.00170527]
[1641738074685,3.23078,3097.4,3097.1,0.00170527]
[1641738074884,0.80768,3097.3,3097.1,0.00170527]
[1641738075141,1.6153698,3097.3,3097.1,0.00170527]
[1641738076740,0.80768,3097.3,3097.1,0.00170527]
[1641738076943,1.61712527,3097.5,3097.1,0.00170527]
[1641738076944,0.00170527,3097.5,3097.1,0.00170527]
[1641738077342,0.00170527,3097.5,3097.1,1.14420527]
[1641738077742,0.00170527,3097.5,3097.2,0.00113684]
[1641738078546,0.00170527,3097.5,3097.2,2.75169187]
[1641738078741,0.00170527,3097.5,3097.3,1.92480267]
[1641738079383,0.00170527,3097.5,3097.2,5.20445075]
[1641738080185,0.00170527,3097.5,3097.4,2.75055503]
[1641738080785,0.00170527,3097.5,3097.3,5.20331391]
[1641738081386,0.00170527,3097.5,3097.3,2.45275888]
[1641738082084,0.00170527,3097.5,3097.2,5.20445075]
[1641738082735,0.00170527,3097.5,3097.3,4.43548312]
[1641738082931,0.00170527,3097.5,3097.4,1.97674516]
[1641738083133,0.00170527,3097.5,3097.3,2.45275888]
[1641738083332,0.00170527,3097.5,3097.4,1.93311103]
[1641738083531,0.00170527,3097.5,3097.4,4.68366606]
[1641738083734,0.00170527,3097.5,3097.4,2.75055503]
[1641738084131,0.00170527,3097.5,3097.4,2.4680164]
[1641738085231,0.80201412,3097.5,3097.4,2.4680164]
[1641738085833,1.60960412,3097.5,3097.4,2.4680164]
[1641738086031,1.60960412,3097.5,3097.2,5.21970827]
[1641738086689,0.80929527,3097.5,3097.2,5.21970827]
[1641738087283,0.75929527,3097.5,3097.2,5.21970827]
[1641738087484,0.75929527,3097.5,3097.3,0.00227369]
[1641738087686,0.55929527,3097.5,3097.3,0.00227369]
[1641738087885,0.75724169,3097.6,3097.3,0.00227369]
[1641738088690,2.37242169,3097.6,3097.3,0.00227369]
[1641738088892,0.80759,3097.5,3097.3,0.00227369]
[1641738090443,0.80759,3097.5,3097.4,1.01096642]
[1641738090643,0.8075977,3097.7,3097.4,1.01096642]
[1641738090644,1.61506,3097.7,3097.4,1.01096642]
[1641738090849,0.80753,3097.7,3097.4,1.01267169]
[1641738091043,0.80753,3097.7,3097.5,0.00113684]
[1641738091547,0.80753,3097.7,3097.5,1.29769187]
[1641738091946,0.80755,3097.6,3097.4,1.01096642]
[1641738092346,0.80603794,3098.0,3097.4,1.01096642]
[1641738092546,0.80603794,3098.0,3097.4,0.94596642]
[1641738092745,0.00113685,3097.7,3097.4,0.94596642]
[1641738093546,0.80868685,3097.7,3097.4,0.94596642]
[1641738093746,1.61623685,3097.7,3097.4,0.94596642]
[1641738094495,1.61623685,3097.7,3097.3,2.4680164]
[1641738094892,0.80868685,3097.7,3097.3,2.4680164]
[1641738095193,0.00113685,3097.7,3097.3,2.4680164]
[1641738096193,0.00113685,3097.7,3097.4,2.8797289]
[1641738096395,0.00113685,3097.7,3097.5,2.4680164]
[1641738098448,1.61620685,3097.7,3097.5,2.4680164]
[1641738099457,0.80864685,3097.7,3097.4,1.01993218]
[1641738100151,0.00113685,3097.7,3097.4,1.01993218]
[1641738100950,1.61616685,3097.7,3097.4,1.01993218]
[1641738101151,0.80864685,3097.7,3097.4,1.01993218]
[1641738101397,0.80864685,3097.7,3097.4,3.48794858]
[1641738101584,0.00113685,3097.7,3097.4,3.48794858]
[1641738102184,0.00113685,3097.7,3097.4,1.01993218]
[1641738102785,0.80754,3097.6,3097.4,1.01993218]
[1641738105835,0.80754,3097.6,3097.4,3.48794858]
[1641738106637,0.00113685,3097.7,3097.4,3.48794858]
[1641738107738,0.00113685,3097.7,3097.4,3.23794858]
[1641738108139,0.80753,3097.6,3097.4,3.23794858]
[1641738108347,0.54734908,3097.9,3097.4,3.23794858]
[1641738108640,0.84734908,3097.9,3097.5,0.00113685]
[1641738109086,0.80753,3097.7,3097.5,0.00113685]
[1641738109886,0.80753,3097.6,3097.5,0.00113685]
[1641738110287,0.80753,3097.6,3097.4,0.00170528]
[1641738110489,0.8075,3097.8,3097.4,0.00170528]
[1641738110490,1.61499,3097.8,3097.4,0.00170528]
[1641738110691,0.80749,3097.8,3097.4,1.81152821]
[1641738110989,1.00113684,3097.9,3097.5,1.27013021]
[1641738111290,1.60113684,3097.9,3097.5,1.27013021]
[1641738111489,2.40860684,3097.9,3097.5,1.27013021]
[1641738111890,0.80749,3097.8,3097.5,1.27013021]
[1641738112089,0.80749,3097.8,3097.5,1.02013021]
[1641738112934,0.80749,3097.8,3097.6,2.75048629]
[1641738113338,2.42248,3097.8,3097.6,2.75048629]
[1641738113537,1.61498,3097.8,3097.6,2.75048629]
[1641738114140,0.00113684,3097.9,3097.7,1.84099858]
[1641738114441,0.00113684,3097.9,3097.8,20.3342]
[1641738114639,0.00113684,3097.9,3097.8,21.8002]
[1641738114839,0.00113684,3097.9,3097.8,22.1002]
[1641738115038,0.00113684,3097.9,3097.8,22.75232143]
[1641738115237,0.00113684,3097.9,3097.8,21.45232143]
[1641738115638,0.00113684,3097.9,3097.8,22.45232143]
[1641738115840,0.00113684,3097.9,3097.8,29.62592593]
[1641738116140,7.58104677,3099.3,3097.8,29.62592593]
[1641738116141,1.29192707,3099.3,3098.4,1.6141]
[1641738116392,1.29192707,3099.3,3098.8,0.8069587]
[1641738116585,0.00682108,3099.1,3098.7,0.466]
[1641738116884,0.00944858,3100.0,3098.8,4.5471]
[1641738116885,0.00625266,3099.0,3098.8,4.5471]
[1641738117084,0.00625266,3099.0,3098.9,8.0509]
[1641738117285,0.00944858,3100.0,3099.7,1.06474427]
[1641738117488,0.00944858,3100.0,3099.1,0.80688]
[1641738117489,0.00944858,3100.0,3099.3,0.8068684]
[1641738117687,0.00944858,3100.0,3099.0,2.07976896]
[1641738117688,0.01136847,3099.9,3099.0,2.07976896]
[1641738118086,0.01080005,3099.8,3099.1,0.466]
[1641738118487,4.60353093,3100.7,3099.2,1.36993615]
[1641738118488,0.01023162,3099.7,3099.2,1.36993615]
[1641738118687,0.01023162,3099.7,3099.5,0.79667704]
[1641738118988,0.0096632,3099.6,3099.5,16.44667704]
[1641738119188,6.32e-05,3099.6,3099.5,18.44571524]
[1641738119388,6.32e-05,3099.6,3099.5,19.2490382]
[1641738119589,6.32e-05,3099.6,3099.5,23.14764342]
[1641738119990,6.32e-05,3099.6,3099.5,23.38694342]
[1641738120242,6.32e-05,3099.6,3099.5,27.08724342]
[1641738120444,6.32e-05,3099.6,3099.5,18.89844342]
[1641738120842,6.32e-05,3099.6,3099.5,19.19844342]
[1641738121046,6.32e-05,3099.6,3099.5,25.84797748]
[1641738121846,6.32e-05,3099.6,3099.5,23.38226163]
[1641738122649,6.32e-05,3099.6,3099.5,25.84797748]
[1641738122945,6.32e-05,3099.6,3099.5,29.54387748]
[1641738123894,6.32e-05,3099.6,3099.5,27.07816163]
[1641738127389,2.09784558,3101.1,3099.6,13.45]
[1641738127644,2.09784558,3101.1,3100.4,0.76069394]
[1641738128044,2.09784558,3101.1,3100.5,0.00448419]
[1641738128545,2.09784558,3101.1,3100.9,0.0008]
[1641738128745,2.09784558,3101.1,3100.5,1.88774087]
[1641738128945,2.09784558,3101.1,3100.4,0.76069394]
[1641738128946,2.09784558,3101.1,3101.0,0.00164207]
[1641738129147,2.09784558,3101.1,3100.6,0.00391576]
[1641738129346,2.09784558,3101.1,3100.5,0.00448419]
[1641738129547,2.09784558,3101.1,3100.6,0.00391576]
[1641738129747,2.09784558,3101.1,3100.5,0.00448419]
[1641738130250,0.80672,3101.0,3100.5,0.00448419]
[1641738130454,2.42055,3100.8,3100.5,0.00448419]
[1641738130648,2.42055,3100.8,3100.1,0.00675788]
[1641738130849,2.42055,3100.8,3099.7,4.12311821]
[1641738130850,2.61375,3100.8,3099.8,0.00846315]
[1641738131049,2.21375,3100.8,3100.0,1.21685055]
[1641738131249,3.02054,3100.8,3100.2,0.60280379]
[1641738131482,1.61359,3100.7,3100.2,0.60280379]
[1641738131782,0.3,3100.6,3100.3,0.00562103]
[1641738131983,1.80678,3100.7,3100.3,0.00562103]
[1641738132182,1.80678,3100.7,3100.0,1.15860843]
[1641738132583,0.00284212,3100.6,3100.0,1.15860843]
[1641738132986,0.00227369,3100.5,3100.0,1.15860843]
[1641738133382,0.00170527,3100.4,3100.0,1.15860843]
[1641738133784,0.00113685,3100.3,3100.2,0.85556441]
[1641738134185,0.00341054,3100.3,3100.2,0.85556441]
[1641738136433,0.00341054,3100.3,3100.2,0.60556441]
[1641738136634,0.00341054,3100.3,3099.6,1.88605179]
[1641738137037,0.00341054,3100.3,3099.7,0.0022737]
[1641738137435,0.00341054,3100.3,3099.6,0.00284212]
[1641738138238,0.00341054,3100.3,3099.8,0.78969859]
[1641738138435,0.81026054,3100.3,3099.8,0.78969859]
[1641738138638,0.81026054,3100.3,3099.9,0.00113685]
[1641738138906,0.81026054,3100.3,3099.9,2.74983289]
[1641738140496,0.81026054,3100.3,3099.9,2.74869604]
[1641738140800,0.00170527,3100.2,3099.9,2.68483289]
[1641738141196,0.00113685,3100.1,3099.9,2.68483289]
[1641738141398,0.00113685,3100.1,3099.8,0.78969859]
[1641738141597,0.00170527,3100.2,3099.8,0.78969859]
[1641738141995,0.00113685,3100.1,3099.8,0.78969859]
[1641738142397,0.00170527,3100.2,3099.8,0.78969859]
[1641738142941,0.80685,3100.3,3099.8,0.78969859]
[1641738142942,0.00113685,3100.1,3099.8,0.78969859]
[1641738143137,0.00113685,3100.1,3099.9,1.8561348]
[1641738143340,0.00170527,3100.2,3099.9,1.8561348]
[1641738143736,0.00113685,3100.1,3099.9,1.8561348]
[1641738144138,0.00397897,3100.6,3100.4,0.7703652]
[1641738144537,1.3,3100.7,3100.4,0.7703652]
[1641738144538,0.00341054,3100.5,3100.4,0.7703652]
[1641738144738,0.00341054,3100.5,3100.2,1.13051441]
[1641738145137,0.00284212,3100.4,3100.2,1.13051441]
[1641738145538,0.0022737,3100.3,3100.2,1.13051441]
[1641738145840,0.0022737,3100.3,3100.2,0.83112771]
[1641738146884,0.0022737,3100.3,3100.2,2.18722323]
[1641738148588,43.66908618,3100.8,3100.2,2.18722323]
[1641738148884,0.00227369,3100.7,3100.2,2.18722323]
[1641738149084,0.80901369,3100.7,3100.2,2.18722323]
[1641738149284,0.00170527,3100.6,3100.2,0.83112771]
[1641738149484,42.82846014,3100.8,3100.2,0.83112771]
[1641738149685,42.82846014,3100.8,3100.3,0.00170527]
[1641738150161,42.82846014,3100.8,3099.9,1.82898393]
[1641738150366,0.80678,3100.5,3099.9,0.00397897]
[1641738150562,0.80678,3100.5,3100.0,0.00341055]
[1641738150763,0.80678,3100.5,3099.9,0.81071897]
[1641738150968,0.80678,3100.5,3100.1,0.86057426]
[1641738151163,0.80678,3100.5,3100.0,0.00341055]
[1641738151362,0.80678,3100.5,3100.2,0.0022737]
[1641738151564,0.80678,3100.5,3100.0,0.00341055]
[1641738152563,0.80678,3100.5,3100.0,0.85467345]
[1641738152770,39.20395817,3100.8,3100.0,1.66137345]
[1641738152771,40.01066817,3100.8,3100.0,1.66137345]
[1641738152964,40.01066817,3100.8,3100.1,0.00284212]
[1641738153986,40.01066817,3100.8,3100.1,1.86113163]
[1641738154188,0.466,3100.9,3100.4,1.02664708]
[1641738154489,0.00113684,3100.8,3100.4,2.92627715]
[1641738154687,0.00113684,3100.8,3100.4,3.22627715]
[1641738154886,0.00227369,3101.0,3100.4,3.22627715]
[1641738155288,0.00170527,3100.9,3100.5,0.69928027]
[1641738155488,0.00170527,3100.9,3100.6,2.74275835]
[1641738155688,0.00227369,3101.0,3100.6,3.04135835]
[1641738155887,0.00227369,3101.0,3100.9,1.04309929]
[1641738156093,1.29115558,3101.1,3100.5,0.69928027]
[1641738156289,1.29115558,3101.1,3101.0,0.62699647]
[1641738156888,1.29115558,3101.1,3100.6,1.93170822]
[1641738157088,1.29115558,3101.1,3100.7,1.28713661]
[1641738157290,0.00227369,3101.0,3100.7,1.28713661]
[1641738157734,0.00170527,3100.9,3100.7,2.09361661]
[1641738158133,0.00113684,3100.8,3100.7,2.09361661]
[1641738158738,0.00113684,3100.8,3100.7,2.74004338]
[1641738159438,0.00113684,3100.8,3100.7,4.58837466]
[1641738160235,0.00113684,3100.8,3100.7,4.33837466]
[1641738160437,1.29115558,3101.1,3100.8,0.00227368]
[1641738160639,1.29115558,3101.1,3100.8,0.80647]
[1641738160837,0.00113685,3101.0,3100.8,0.80647]
[1641738161491,0.00113685,3101.0,3100.9,2.74779312]
[1641738162488,0.00113685,3101.0,3100.9,4.56595487]
[1641738163488,0.00113685,3101.0,3100.9,2.74779312]
[1641738163690,0.00113685,3101.0,3100.9,4.56895477]
[1641738165439,0.00113685,3101.0,3100.9,2.74779312]
[1641738166040,0.00113685,3101.0,3100.9,4.58135502]
[1641738166446,0.00113685,3101.0,3100.9,2.74779312]
[1641738167441,7.50113685,3101.0,3100.9,2.74779312]
[1641738168442,0.00113685,3101.0,3100.9,2.74779312]
[1641738168644,0.00113685,3101.0,3100.4,2.74779312]
[1641738168893,3.71106988,3101.1,3100.4,2.74779312]
[1641738168894,0.78087664,3101.1,3100.4,2.74779312]
[1641738169191,0.78087664,3101.1,3100.5,0.00284212]
[1641738169686,0.8067025,3101.0,3100.5,0.00284212]
[1641738169887,0.80671,3100.8,3100.5,0.00284212]
[1641738171989,0.80673,3100.8,3100.5,0.00284212]
[1641738172194,0.80674,3100.7,3100.5,0.00284212]
[1641738173440,0.80674,3100.7,3100.3,2.68563524]
[1641738173843,0.80674,3100.7,3100.2,1.95551]
[1641738174241,0.80674,3100.7,3100.3,0.00113684]
[1641738175445,0.80674,3100.7,3100.3,0.80780684]
[1641738176043,0.80668,3100.9,3100.3,0.80780684]
[1641738176044,1.61334,3100.9,3100.3,0.80780684]
[1641738176492,0.00170527,3100.8,3100.3,0.80780684]
[1641738176693,0.00170527,3100.8,3100.4,0.80664]
[1641738176888,0.00113685,3100.7,3100.4,0.80664]
[1641738178893,0.00113685,3100.7,3100.3,0.00113684]
[1641738179792,1.61456685,3100.7,3100.3,0.00113684]
[1641738179992,1.61456685,3100.7,3100.2,0.00170527]
[1641738180244,1.61456685,3100.7,3100.1,0.00227369]
[1641738180443,0.00113685,3100.7,3100.1,0.00227369]
[1641738180643,0.00113685,3100.7,3100.0,9.68887369]
[1641738180843,0.00284212,3100.6,3100.0,9.68887369]
[1641738181245,0.00227369,3100.5,3100.0,9.68887369]
[1641738181450,0.00227369,3100.5,3100.2,0.8067]
[1641738181646,0.00170527,3100.4,3100.2,0.8067]
[1641738182045,0.00113685,3100.3,3100.2,0.8067]
[1641738184192,0.00113685,3100.3,3100.2,2.66268833]
[1641738184390,0.00113685,3100.3,3100.2,7.46268833]
[1641738184592,0.00113685,3100.3,3100.2,2.66268833]
[1641738185493,0.00113685,3100.3,3100.2,2.6523532]
[1641738185693,0.00113685,3100.3,3100.2,0.8067]
[1641738186392,0.00113685,3100.3,3100.0,13.8119919]
[1641738186592,0.00113685,3100.3,3100.0,9.86751821]
[1641738187398,0.00113685,3100.3,3100.0,5.29921821]
[1641738187642,0.00113685,3100.3,3100.0,6.10597821]
[1641738188840,1.62299858,3100.9,3100.8,0.80903369]
[1641738189043,2.42972498,3100.9,3100.8,0.80903369]
[1641738189241,17.57299858,3100.9,3100.8,0.80903369]
[1641738189441,17.57299858,3100.9,3100.1,0.00113685]
[1641738189442,13.0,3100.8,3100.1,0.00113685]
[1641738189643,0.80696,3100.5,3100.1,0.00113685]
[1641738189842,2.07996,3100.5,3100.1,0.00113685]
[1641738190044,0.3,3100.4,3100.1,0.00113685]
[1641738190243,1.1069975,3100.4,3100.1,0.00113685]
[1641738190443,13.40701,3100.3,3100.0,3.74725506]
[1641738190644,1.0,3100.2,3100.0,3.74725506]
[1641738190944,2.91417,3100.2,3100.0,3.68225506]
[1641738191143,2.91417,3100.2,3100.0,5.506e-05]
[1641738191393,3.72125,3100.2,3100.0,5.506e-05]
[1641738192095,2.72125,3100.2,3100.0,5.506e-05]
[1641738192295,1.0,3100.1,3100.0,5.506e-05]
[1641738192495,1.3,3100.1,3100.0,5.506e-05]
[1641738193295,4.95,3100.1,3100.0,5.506e-05]
[1641738193897,0.73800183,3099.9,3099.7,2.44292858]
[1641738194098,5.05707,3099.8,3099.7,2.44292858]
[1641738194498,6.35707,3099.8,3099.7,2.44292858]
[1641738194697,44.69736765,3099.8,3099.7,2.44292858]
[1641738196646,44.69736765,3099.8,3099.3,2.74912538]
[1641738196647,12.65,3099.7,3099.3,2.74912538]
[1641738196845,2.8689025,3099.6,3099.3,2.74912538]
[1641738197044,2.8689025,3099.6,3099.4,0.00397897]
[1641738197045,5.58680951,3099.5,3099.4,0.00397897]
[1641738197246,5.58680951,3099.5,3098.8,5.49610369]
[1641738197247,5.5,3099.3,3098.8,5.49610369]
[1641738197444,2.77672634,3099.2,3098.8,5.49610369]
[1641738197644,1.466,3099.2,3099.1,0.00170527]
[1641738198244,7.816,3099.2,3099.1,0.00170527]
[1641738198898,4.6954517,3099.2,3099.1,0.00170527]
[1641738199094,5.2954517,3099.2,3099.1,0.00170527]
[1641738200995,4.2,3099.1,3098.8,5.49610369]
[1641738201198,2.4221281,3099.0,3098.8,5.49610369]
[1641738201395,3.4221281,3099.0,3098.9,0.00113684]
[1641738201597,2.61475,3099.0,3098.2,6.87068136]
[1641738201795,2.40311744,3098.9,3098.2,6.87068136]
[1641738201995,0.3,3098.8,3098.3,0.00341054]
[1641738202196,0.84788385,3098.6,3098.3,0.00341054]
[1641738202396,1.95530385,3098.6,3098.2,0.00397897]
[1641738202643,0.80739,3098.4,3097.9,0.00568424]
[1641738203642,1.6147,3098.4,3097.9,0.00568424]
[1641738204847,2.6147,3098.4,3097.9,0.00568424]
[1641738205047,1.0,3098.3,3097.9,0.00568424]
[1641738205446,1.6147,3098.4,3097.9,0.00568424]
[1641738205653,1.6147,3098.4,3098.1,1.31998477]
[1641738206048,1.6147,3098.4,3098.2,0.00397897]
[1641738206692,1.6147,3098.4,3097.6,11.612156]
[1641738206693,1.6147,3098.4,3097.9,0.00568424]
[1641738206891,0.80735,3098.2,3097.9,0.00568424]
[1641738209495,0.80731,3098.4,3097.9,0.00568424]
[1641738209893,1.8072658,3098.8,3097.9,0.00568424]
[1641738210161,0.3,3098.7,3097.9,0.00568424]
[1641738210558,0.8073,3098.4,3097.9,0.00568424]
[1641738211659,0.80738,3098.1,3097.9,0.00568424]
[1641738212058,0.80732,3098.5,3097.9,0.00568424]
[1641738212456,0.6,3098.5,3097.9,0.00568424]
[1641738212659,1.4073588,3098.5,3097.9,0.00568424]
[1641738212857,1.1073588,3098.5,3097.9,0.00568424]
[1641738213058,1.10735,3098.4,3097.9,0.00568424]